Workbook

Sheet Tools
B1: EXCEL PROJECT
B3: Fonction | C3: Calcul | D3: Entrée | E3: Sortie
B5: MTran(M) | C5: Transpose la matrice | D5: Matrice ou Vecteur | E5: Matrice ou Vecteur
B6: MInverse(M) | C6: Inverse la matrice | D6: Matrice carrée nxn | E6: Matrice carrée nxn
B7: MProd(Mx, My) | C7: Produit matriciel | D7: 2 Matrices compatibles | E7: Matrice ou Nombre
B8: MTProd(Mx, My) | C8: Produit transposée x matrice: tMx My | D8: 2 Matrices compatibles | E8: Matrice ou Nombre
B9: MSProd(Mx) | C9: Produit transposée x matrice: tMx Mx | D9: 1 Matrices compatibles | E9: Matrice ou Nombre
B10: MQProd(Mx, My) | C10: Produit quadratique: tMx My Mx | D10: 2 Matrices compatibles | E10: Nombre
B11: MQProdD(Mx, My) | C11: Produit quadratique: Mx My inv(Mx) | D11: 2 Matrices compatibles | E11: Nombre
B12: MQProdG(Mx, My) | C12: Produit quadratique: inv(Mx) My Mx | D12: 2 Matrices compatibles | E12: Nombre
B13: MZero(n,m) | C13: Matrice Zero | D13: Tailles n et m | E13: Matrice nxm
B14: MUn(n) | C14: Matrice Identité | D14: Taille n | E14: Matrice unitaire carrée nxn
B15: MScal(n,k) | C15: Matrice Scalaire de diagonale k | D15: Taille n et k | E15: Matrice diagonale carrée nxn
B16: MDiagVP(P) | C16: Matrice diagonale quelconque | D16: Vecteur Colonne | E16: Matrice diagonale nxn
B17: MAdd(M,k) | C17: Addition d'un nombre à une matrice | D17: Matrice nxm et k | E17: Matrice nxm
B18: MMul(M,k) | C18: Multiplication d'un nombre par une matrice | D18: Matrice nxm et k | E18: Matrice nxm
B20: MCentre(M) | C20: Matrice Centrée | D20: Matrice carrée nxm | E20: Matrice carrée nxm
B21: MReduit(M) | C21: Matrice Centrée Réduite | D21: Matrice carrée nxm | E21: Matrice carrée nxm
B22: MCovariance(M) | C22: Matrice de Covariance de M | D22: Matrice carrée nxm | E22: Matrice carrée symétrique mxm
B23: MCorrelation(M) | C23: Matrice de Corrélation de M | D23: Matrice carrée nxm | E23: Matrice carrée symétrique mxm
B24: MCholesky(M) | C24: Matrice "Racine Carrée" de Cholesky | D24: Matrice carrée nxn | E24: Matrice carrée triangulaire inférieure nxn
B26: ValP(M) | C26: Valeurs Propres de M | D26: Matrice carrée nxn | E26: Vecteur horizontal n
B27: VecP(M) | C27: Vecteurs Propres de M | D27: Matrice carrée nxn | E27: Matrice carrée nxn
B29: NHalton(p,k) | C29: Nombres de Halton | D29: Base (p) er Rang (k) | E29: Nombre
B30: TPascal(n,k) | C30: Triangle de Pascal | D30: Ligne (n) Colonne (k) | E30: Coefficient du binome (n,k)
B31: TCatalan(n,k) | C31: Triangle de Catalan | D31: Ligne (n) Colonne (k) | E31: Nombre de TCatalan (n,k)
B32: NCatalan(k) | C32: Nombres de Catalan | D32: Rang k | E32: Nombre de Catalan (k) = TCatalan(k,kà

Sheet ExoCorrec1 (hidden)
A1: MATRICES Exercices - Application avec Autocorrection
A4: ADDITION DE DEUX MATRICES
B5: matrice A | F5: matrice B | L5: A+B
B6: 15 | C6: -85 | D6: 0 | F6: 8 | G6: 78 | H6: 0 | I6: OK | L6: =B6:D9+F6:H9 -> 23 | M6: -7 | N6: 0 | O6: =form(L6) -> =B6:D9+F6:H9
B7: 0 | C7: 55 | D7: 6 | F7: 88 | G7: 0 | H7: 6 | L7: 88 | M7: 55 | N7: 12
B8: -7 | C8: 0 | D8: -33 | F8: 4 | G8: 1 | H8: 5 | L8: -3 | M8: 1 | N8: -28
B9: 2 | C9: -4 | D9: 8 | F9: -7 | G9: -22 | H9: -77 | L9: -5 | M9: -26 | N9: -69
A11: MULTIPLICATION PAR UN NOMBRE
B12: matrice A | F12: scalaire b | L12: A.b
B13: 15 | C13: -85 | D13: 0 | F13: 8 | I13: OK | L13: =B13:D16*F13 -> 120 | M13: -680 | N13: 0 | O13: =form(L13) -> =B13:D16*F13
B14: 0 | C14: 55 | D14: 6 | L14: 0 | M14: 440 | N14: 48
B15: -7 | C15: 0 | D15: -33 | L15: -56 | M15: 0 | N15: -264
B16: 2 | C16: -4 | D16: 8 | L16: 16 | M16: -32 | N16: 64
A18: DETERMINANT D'UNE MATRICE
B19: matrice A | L19: determinant (A)
B20: 15 | C20: -85 | D20: 0 | E20: 5 | I20: OK | L20: =MDETERM(B20:E23) -> -212325 | O20: =form(L20) -> =DETERMAT(B20:E23)
B21: 0 | C21: 55 | D21: 6 | E21: 1
B22: -7 | C22: 0 | D22: -33 | E22: 8
B23: 2 | C23: -4 | D23: 8 | E23: 7
A25: TRANSPOSEE D'UNE MATRICE
B26: matrice A | L26: AT
B27: 15 | C27: -85 | D27: 0 | I27: OK | L27: =TRANSPOSE(B27:D30) -> 15 | M27: 0 | N27: -7 | O27: 2 | Q27: =form(N27) -> =TRANSPOSE(B27:D30)
B28: 0 | C28: 55 | D28: 6 | L28: -85 | M28: 55 | N28: 0 | O28: -4
B29: -7 | C29: 0 | D29: -33 | L29: 0 | M29: 6 | N29: -33 | O29: 8
B30: 2 | C30: -4 | D30: 8
A32: PRODUIT DE DEUX MATRICES
B33: matrice A | F33: matrice B | L33: A.B
B34: 15 | C34: -85 | D34: 0 | F34: 8 | G34: 78 | H34: 0 | I34: OK | L34: =MMULT(B34:D37,F34:H36) -> -7360 | M34: 1170 | N34: -510 | O34: =form(L34) -> =PRODUITMAT(B34:D37;F34:H36)
B35: 0 | C35: 55 | D35: 6 | F35: 88 | G35: 0 | H35: 6 | L35: 4864 | M35: 6 | N35: 360
B36: -7 | C36: 0 | D36: -33 | F36: 4 | G36: 1 | H36: 5 | L36: -188 | M36: -579 | N36: -165
B37: 2 | C37: -4 | D37: 8 | L37: -304 | M37: 164 | N37: 16
A39: INVERSE D'UNE MATRICE
B40: matrice A | L40: A-1
B41: 15 | C41: -85 | D41: 0 | I41: OK | L41: =MINVERSE(B41:D43) -> 0.04816878981 | M41: 0.07444267516 | N41: 0.01353503185 | O41: =form(L41) -> =INVERSEMAT(B41:D43)
B42: 5 | C42: 55 | D42: 6 | L42: -0.00326433121 | M42: 0.01313694268 | N42: 0.002388535032
B43: -7 | C43: 0 | D43: -33 | L43: -0.01021762208 | M43: -0.01579087049 | N43: -0.03317409766
A45: PRODUIT SCALAIRE
B46: vecteur A | G46: vecteur B | L46: A.B
B47: 15 | C47: 8 | D47: -7 | E47: 14 | G47: 1 | I47: OK | L47: =MMULT(B47:E47,G47:G50) -> 22 | O47: =form(L47) -> =PRODUITMAT(B47:E47;G47:G50)
G48: 0
G49: 5
G50: 3
A52: PRODUIT D'UNE MATRICE ET DE SA TRANSPOSEE
B54: matrice A | L54: A.AT
B55: 15 | C55: -85 | D55: 0 | I55: OK | L55: =MMULT(B55:D57,TRANSPOSE(B55:D57)) -> 7450 | M55: -4600 | N55: -105 | O55: =form(L55) -> =PRODUITMAT(B55:D57;TRANSPOSE(B55:D57))
B56: 5 | C56: 55 | D56: 6 | L56: -4600 | M56: 3086 | N56: -233
B57: -7 | C57: 0 | D57: -33 | L57: -105 | M57: -233 | N57: 1138
L59: AT.A
I60: OK | L60: =MMULT(TRANSPOSE(B55:D57),B55:D57) -> 299 | M60: -1000 | N60: 261 | O60: =form(L60) -> =PRODUITMAT(TRANSPOSE(B55:D57);B55:D57)
L61: -1000 | M61: 10250 | N61: 330
L62: 261 | M62: 330 | N62: 1125
A64: RESOLUTION D'UN SYSTEME D'EQUATIONS
M72: A-1,x
B73: 13 | C73: a + | D73: -8 | E73: b + | F73: -3 | G73: c = | H73: 20 | I73: OK | L73: a= | M73: =MMULT(MINVERSE(D77:F79),H77:H79) -> 3 | O73: =form(M73) -> =PRODUITMAT(INVERSEMAT(D77:F79);H77:H79)
B74: -8 | C74: a + | D74: 10 | E74: b + | F74: -1 | G74: c = | H74: -5 | L74: b= | M74: 2
B75: -3 | C75: a + | D75: -1 | E75: b + | F75: 11 | G75: c = | H75: 0 | L75: c= | M75: 1
L76: vérification | M76: A,x
B77: premier membre: A | D77: 13 | E77: -8 | F77: -3 | G77: sec membre: B | H77: 20 | I77: OK | M77: =MMULT(D77:F79,M73:M75) -> 20 | O77: =form(M77) -> =PRODUITMAT(D77:F79;M73:M75)
D78: -8 | E78: 10 | F78: -1 | H78: -5 | M78: -5
D79: -3 | E79: -1 | F79: 11 | H79: 0 | M79: -1.776356839e-15
A81: CALCUL DE LA TRACE D'UNE MATRICE CARREE
B83: matrice A | L83: trace (A)
B84: 15 | C84: -85 | D84: 0 | I84: OK | L84: =SUM(B84:D86*MMULT(B84:D86,MINVERSE(B84:D86))) -> 37 | O84: =form(L84) -> =SOMME(B84:D86*PRODUITMAT(B84:D86;INVERSEMAT(B84:D86)))
B85: 5 | C85: 55 | D85: 6
B86: -7 | C86: 0 | D86: -33
A88: CALCUL DE LA TRACE DU PRODUIT DE DEUX MATRICES CARREES
B90: matrice A | F90: matrice B | L90: trace (AB)
B91: 15 | C91: -85 | D91: 0 | F91: 12 | G91: 2 | H91: 23 | I91: OK | L91: =SUM((B91:D93*TRANSPOSE(F91:H93))) -> 2754 | O91: =form(L91) -> =SOMME((B91:D93*TRANSPOSE(F91:H93)))
B92: 5 | C92: 55 | D92: 6 | F92: -34 | G92: 0 | H92: 5 | L92: trace (BA)
B93: -7 | C93: 0 | D93: -33 | F93: 38 | G93: -11 | H93: 3 | I93: OK | L93: =SUM((TRANSPOSE(B91:D93)*(F91:H93))) -> 2754 | O93: =form(L93) -> =SOMME((TRANSPOSE(B91:D93)*(F91:H93)))

Sheet Matrice
A1: FONCTIONS MATRICIELLES
B3: Matrice Mx
B4: 15 | C4: -85 | D4: 0 | E4: -20
B5: 3 | C5: 55 | D5: 6 | E5: 55
B6: -7 | C6: 1 | D6: -33 | E6: 0
B7: 2 | C7: -4 | D7: 8 | E7: 4
B9: Inverse de la matrice
B10: =_xludf.Minverse($B$4:$E$7) -> 0.07069319834 | C10: 0.06866823718 | D10: -0.1307202646 | E10: -0.5907222696 | F10: =form(B10) -> =Minverse($B$4:$E$7)
B11: 0.001613954188 | C11: 0.01092677059 | D11: -0.03247957496 | E11: -0.1421733246
B12: -0.01494661922 | C12: -0.01423487544 | D12: -0.003558718861 | E12: 0.1209964413
B13: -0.003839406546 | C13: 0.005062402887 | D13: 0.03999799509 | E13: 0.1611949276
B14: Transpose de la matrice
B15: =MTran($B$4:$E$7) -> 15 | C15: 3 | D15: -7 | E15: 2 | F15: =form(B15) -> =MTran($B$4:$E$7)
B16: -85 | C16: 55 | D16: 1 | E16: -4
B17: 0 | C17: 6 | D17: -33 | E17: 8
B18: -20 | C18: 55 | D18: 0 | E18: 4
B19: Produit de 2 matrices: Mx My
B20: =MProd($B$4:$E$7,$B$4:$E$7) -> -70 | C20: -5870 | D20: -670 | E20: -5055 | F20: =form(B20) -> =MProd($B$4:$E$7;$B$4:$E$7)
B21: 278 | C21: 2556 | D21: 572 | E21: 3185
B22: 129 | C22: 617 | D22: 1095 | E22: 195
B23: -30 | C23: -398 | D23: -256 | E23: -244
B24: Produit de 2 matrices: t(Mx) My
B25: =MTProd($B$4:$E$7,$B$4:$E$7) -> 287 | C25: -1125 | D25: 265 | E25: -127 | F25: =form(B25) -> =MTProd($B$4:$E$7;$B$4:$E$7)
B26: -1125 | C26: 10267 | D26: 265 | E26: 4709
B27: 265 | C27: 265 | D27: 1189 | E27: 362
B28: -127 | C28: 4709 | D28: 362 | E28: 3441
B29: Produit scalaire: t(Mx) Mx
B30: =MSProd($B$4:$E$7) -> 287 | C30: -1125 | D30: 265 | E30: -127 | F30: =form(B30) -> =MSProd($B$4:$E$7)
B31: -1125 | C31: 10267 | D31: 265 | E31: 4709
B32: 265 | C32: 265 | D32: 1189 | E32: 362
B33: -127 | C33: 4709 | D33: 362 | E33: 3441
B34: Produit quadratique 2 matrices: t(Mx) My Mx
B35: =MQProd($B$4:$E$7,$B$4:$E$7) -> -1179 | C35: -85497 | D35: -16511 | E35: -68123 | F35: =form(B35) -> =MQProd($B$4:$E$7;$B$4:$E$7)
B36: 21489 | C36: 641739 | D36: 90529 | E36: 606021
B37: -2829 | C37: -8209 | D37: -34751 | E37: 10723
B38: 16570 | C38: 256388 | D38: 43836 | E38: 275299
B39: Produit quadratique 2 matrices: inv(Mx) My Mx
B40: =MQProdG($B$4:$E$7,$B$4:$E$7) -> 15 | C40: -85 | D40: -1.776356839e-15 | E40: -20 | F40: =form(B40) -> =MQProdG($B$4:$E$7;$B$4:$E$7)
B41: 3 | C41: 55 | D41: 6 | E41: 55
B42: -7 | C42: 1 | D42: -33 | E42: 1.443289932e-15
B43: 2 | C43: -4 | D43: 8 | E43: 4
B44: Produit quadratique 2 matrices: Mx My inv(Mx)
B45: =MQProdD($B$4:$E$7,$B$4:$E$7) -> 15 | C45: -85 | D45: 0 | E45: -20 | F45: =form(B45) -> =MQProdD($B$4:$E$7;$B$4:$E$7)
B46: 3 | C46: 55 | D46: 6 | E46: 55
B47: -7 | C47: 1 | D47: -33 | E47: -1.065814104e-14
B48: 2 | C48: -4 | D48: 8 | E48: 4
B50: Addition à 1 matrice d'un scalaire: Mx + N | E50: 10
B51: =MAddScal($B$4:$E$7,E50) -> 25 | C51: -75 | D51: 10 | E51: -10 | F51: =form(B51) -> =MAddScal($B$4:$E$7;E50)
B52: 13 | C52: 65 | D52: 16 | E52: 65
B53: 3 | C53: 11 | D53: -23 | E53: 10
B54: 12 | C54: 6 | D54: 18 | E54: 14
B55: Produit de 1 matrice par un scalaire: Mx . N | E55: 10
B56: =MMulScal($B$4:$E$7,E55) -> 150 | C56: -850 | D56: 0 | E56: -200 | F56: =form(B56) -> =MMulScal($B$4:$E$7;E55)
B57: 30 | C57: 550 | D57: 60 | E57: 550
B58: -70 | C58: 10 | D58: -330 | E58: 0
B59: 20 | C59: -40 | D59: 80 | E59: 40
B61: Matrice zero
B62: =MZero(4,4) -> 0 | C62: 0 | D62: 0 | E62: 0 | F62: =form(B62) -> =MZero(4;4)
B63: 0 | C63: 0 | D63: 0 | E63: 0
B64: 0 | C64: 0 | D64: 0 | E64: 0
B65: 0 | C65: 0 | D65: 0 | E65: 0
B67: Matrice Identité
B68: =MUn(4) -> 1 | C68: 0 | D68: 0 | E68: 0 | F68: =form(B68) -> =MUn(4)
B69: 0 | C69: 1 | D69: 0 | E69: 0
B70: 0 | C70: 0 | D70: 1 | E70: 0
B71: 0 | C71: 0 | D71: 0 | E71: 1
B73: Matrice Scalaire
B74: =MScal(4,5) -> 5 | C74: 0 | D74: 0 | E74: 0 | F74: =form(B74) -> =MScal(4;5)
B75: 0 | C75: 5 | D75: 0 | E75: 0
B76: 0 | C76: 0 | D76: 5 | E76: 0
B77: 0 | C77: 0 | D77: 0 | E77: 5
B79: Matrice Diag
B80: =MDiag(B4:B7) -> 15 | C80: 0 | D80: 0 | E80: 0 | F80: =form(B80) -> =MDiag(B4:B7)
B81: 0 | C81: 3 | D81: 0 | E81: 0
B82: 0 | C82: 0 | D82: -7 | E82: 0
B83: 0 | C83: 0 | D83: 0 | E83: 2

Sheet Covariance
A1: FONCTIONS MCENTRE MREDUITE MCOVARIANCE MCORRELATION
A2: MATRICE DE COVARIANCE, MATRICE DE CORRELATION
B3: Matrice Entrée
C4: 1 | D4: 2 | E4: 3 | F4: 4 | G4: 5
B5: 1 | C5: 1.0439 | D5: 0.8389 | E5: 1.0751 | F5: 123.38 | G5: 9.0623
B6: 2 | C6: 1.0422 | D6: 0.8414 | E6: 1.0709 | F6: 122.19 | G6: 9.0485
B7: 3 | C7: 1.0364 | D7: 0.83978 | E7: 1.0687 | F7: 122.43 | G7: 9.0343
B8: 4 | C8: 1.0421 | D8: 0.8424 | E8: 1.0689 | F8: 122.31 | G8: 9.026
B9: 5 | C9: 1.0444 | D9: 0.84645 | E9: 1.0706 | F9: 122.86 | G9: 9.0975
B10: 6 | C10: 1.0446 | D10: 0.85278 | E10: 1.0711 | F10: 122.6 | G10: 9.0928
B11: 7 | C11: 1.0445 | D11: 0.853 | E11: 1.0754 | F11: 122.61 | G11: 9.1078
B12: 8 | C12: 1.0401 | D12: 0.85128 | E12: 1.0714 | F12: 122.39 | G12: 9.0777
B13: 9 | C13: 1.0453 | D13: 0.853 | E13: 1.0714 | F13: 122.04 | G13: 9.0758
B14: 10 | C14: 1.0541 | D14: 0.85618 | E14: 1.0739 | F14: 123.4 | G14: 9.0863
B15: Calculs intermédiaires:
B16: MOYENNE | C16: =AVERAGE(C5:C14) -> 1.04376 | D16: =AVERAGE(D5:D14) -> 0.847517 | E16: =AVERAGE(E5:E14) -> 1.07174 | F16: =AVERAGE(F5:F14) -> 122.621 | G16: =AVERAGE(G5:G14) -> 9.0709 | H16: =form(C16) -> =MOYENNE(C5:C14)
B17: ECART TYPE | C17: =STDEVP(C5:C14) -> 0.004286303769 | D17: =STDEVP(D5:D14) -> 0.006130964117 | E17: =STDEVP(E5:E14) -> 0.002220450405 | F17: =STDEVP(F5:F14) -> 0.4416435214 | G17: =STDEVP(G5:G14) -> 0.02605279256 | H17: =form(C17) -> =ECARTYPEP(C5:C14)
B18: Matrice Centrée
C19: =mcentre(MATAA) -> 0.00014 | D19: -0.008617 | E19: 0.00336 | F19: 0.759 | G19: -0.0086 | H19: =form(C19) -> =mcentre(MATAA)
C20: -0.00156 | D20: -0.006117 | E20: -0.00084 | F20: -0.431 | G20: -0.0224
C21: -0.00736 | D21: -0.007737 | E21: -0.00304 | F21: -0.191 | G21: -0.0366
C22: -0.00166 | D22: -0.005117 | E22: -0.00284 | F22: -0.311 | G22: -0.0449
C23: 0.00064 | D23: -0.001067 | E23: -0.00114 | F23: 0.239 | G23: 0.0266
C24: 0.00084 | D24: 0.005263 | E24: -0.00064 | F24: -0.021 | G24: 0.0219
C25: 0.00074 | D25: 0.005483 | E25: 0.00366 | F25: -0.011 | G25: 0.0369
C26: -0.00366 | D26: 0.003763 | E26: -0.00034 | F26: -0.231 | G26: 0.0068
C27: 0.00154 | D27: 0.005483 | E27: -0.00034 | F27: -0.581 | G27: 0.0049
C28: 0.01034 | D28: 0.008663 | E28: 0.00216 | F28: 0.779 | G28: 0.0154
B29: Matrice de Covariance
C30: =MCovariance(MATAA) -> 1.83724e-05 | D30: 1.658168e-05 | E30: 5.3366e-06 | F30: 0.00108334 | G30: 5.8227e-05 | H30: =form(C30) -> =MCovariance(MATAA)
C31: 1.658168e-05 | D31: 3.7588721e-05 | E31: 4.77222e-06 | F31: 0.000143303 | G31: 0.000119912
C32: 5.3366e-06 | D32: 4.77222e-06 | E32: 4.9304e-06 | F32: 0.00060356 | G32: 3.487e-05
C33: 0.00108334 | D33: 0.000143303 | E33: 0.00060356 | F33: 0.195049 | G33: 0.0037152
C34: 5.8227e-05 | D34: 0.000119912 | E34: 3.487e-05 | F34: 0.0037152 | G34: 0.000678748
C36: =MMULT(TRANSPOSE(MATAA-$C$16:$G$16),(MATAA-$C$16:$G$16))/ROWS(MATAA) -> 1.83724e-05 | D36: 1.658168e-05 | E36: 5.3366e-06 | F36: 0.00108334 | G36: 5.8227e-05 | H36: =form(C36) -> =PRODUITMAT(TRANSPOSE(MATAA-$C$16:$G$16);(MATAA-$C$16:$G$16))/LIGNES(MATAA)
C37: 1.658168e-05 | D37: 3.7588721e-05 | E37: 4.77222e-06 | F37: 0.000143303 | G37: 0.000119912
C38: 5.3366e-06 | D38: 4.77222e-06 | E38: 4.9304e-06 | F38: 0.00060356 | G38: 3.487e-05
C39: 0.00108334 | D39: 0.000143303 | E39: 0.00060356 | F39: 0.195049 | G39: 0.0037152
C40: 5.8227e-05 | D40: 0.000119912 | E40: 3.487e-05 | F40: 0.0037152 | G40: 0.000678748
B41: Matrice Réduite
C42: =MReduit(MATAA) -> 0.03266217411 | D42: -1.405488572 | E42: 1.513206507 | F42: 1.718580627 | G42: -0.3300989704 | H42: =form(C42) -> =MReduit(MATAA)
C43: -0.3639499401 | D43: -0.997722362 | E43: -0.3783016267 | F43: -0.975900198 | G43: -0.8597926672
C44: -1.717097153 | D44: -1.261954866 | E44: -1.369091601 | F44: -0.4324754938 | G44: -1.404839804
C45: -0.3872800645 | D45: -0.8346158781 | E45: -1.279019785 | F45: -0.7041878459 | G45: -1.723423694
C46: 0.1493127959 | D46: -0.1740346183 | E46: -0.5134093505 | F46: 0.5411604346 | G46: 1.021003792
C47: 0.1959730447 | D47: 0.8584294248 | E47: -0.2882298108 | F47: -0.04754966162 | G47: 0.8406008666
C48: 0.1726429203 | D48: 0.8943128512 | E48: 1.64831423 | F48: -0.02490696561 | G48: 1.416354885
C49: -0.8538825518 | D49: 0.6137696989 | E49: -0.153122087 | F49: -0.5230462778 | G49: 0.2610084882
C50: 0.3592839152 | D50: 0.8943128512 | E50: -0.153122087 | F50: -1.315540638 | G50: 0.1880796459
C51: 2.412334859 | D51: 1.41299147 | E51: 0.9727756114 | F51: 1.763866019 | G51: 0.5911074587
B52: Matrice de Corrélation
C53: =MCorrelation(MATAA) -> 1 | D53: 0.6309817661 | E53: 0.5607130041 | F53: 0.5722818451 | G53: 0.521419402 | H53: =form(C53) -> =MCorrelation(MATAA)
C54: 0.6309817661 | D54: 1 | E54: 0.3505505113 | F54: 0.05292424168 | G54: 0.7507227739
C55: 0.5607130041 | D55: 0.3505505113 | E55: 1 | F55: 0.6154708781 | G55: 0.6027768832
C56: 0.5722818451 | D56: 0.05292424168 | E56: 0.6154708781 | F56: 1 | G56: 0.3228910837
C57: 0.521419402 | D57: 0.7507227739 | E57: 0.6027768832 | F57: 0.3228910837 | G57: 0.9999999999
C59: =MMULT(TRANSPOSE((MATAA-C16:G16)/C17:G17),(MATAA-C16:G16)/C17:G17)/ROWS(MATAA) -> 1 | D59: 0.6309817661 | E59: 0.5607130041 | F59: 0.5722818451 | G59: 0.521419402 | H59: =form(C59) -> =PRODUITMAT(TRANSPOSE((MATAA-C16:G16)/C17:G17);(MATAA-C16:G16)/C17:G17)/LIGNES(MATAA)
C60: 0.6309817661 | D60: 1 | E60: 0.3505505113 | F60: 0.05292424168 | G60: 0.750722774
C61: 0.5607130041 | D61: 0.3505505113 | E61: 1 | F61: 0.6154708781 | G61: 0.6027768832
C62: 0.5722818451 | D62: 0.05292424168 | E62: 0.6154708781 | F62: 1 | G62: 0.3228910837
C63: 0.521419402 | D63: 0.750722774 | E63: 0.6027768832 | F63: 0.3228910837 | G63: 1

Sheet Cholesky
A1: FONCTION CHOLESKY
A2: MATRICE DE CHOLESKY
B3: Matrice Entrée
C4: 1 | D4: 2 | E4: 3 | F4: 4 | G4: 5
B5: 1 | C5: 1 | D5: 0.6309817661 | E5: 0.5607130041 | F5: 0.5722818451 | G5: 0.521419402
B6: 2 | C6: 0.6309817661 | D6: 1 | E6: 0.3505505113 | F6: 0.05292424168 | G6: 0.750722774
B7: 3 | C7: 0.5607130041 | D7: 0.3505505113 | E7: 1 | F7: 0.6154708781 | G7: 0.6027768832
B8: 4 | C8: 0.5722818451 | D8: 0.05292424168 | E8: 0.6154708781 | F8: 1 | G8: 0.3228910837
B9: 5 | C9: 0.521419402 | D9: 0.750722774 | E9: 0.6027768832 | F9: 0.3228910837 | G9: 1
B11: Matrice Sortie
C12: =C4 -> 1 | D12: =D4 -> 2 | E12: =E4 -> 3 | F12: =F4 -> 4 | G12: =G4 -> 5
B13: =+B5 -> 1 | C13: =MCholesky(C5:G9) -> 1 | D13: 0 | E13: 0 | F13: 0 | G13: 0 | H13: =form(C13) -> =MCholesky(C5:G9)
B14: =+B6 -> 2 | C14: 0.6309817661 | D14: 0.7757976611 | E14: 0 | F14: 0 | G14: 0
B15: =+B7 -> 3 | C15: 0.5607130041 | D15: -0.004188167201 | E15: 0.8279996294 | F15: 0 | G15: 0
B16: =+B8 -> 4 | C16: 0.5722818451 | D16: -0.3972365258 | E16: 0.3537698595 | F16: 0.6241342154 | G16: 0
B17: =+B9 -> 5 | C17: 0.521419402 | D17: 0.5435910161 | E17: 0.3776413454 | F17: 0.1711623953 | G17: 0.5106085225
C19: =MMULT(C13:G17,TRANSPOSE(C13:G17))-C5:G9 -> 0 | D19: 0 | E19: 0 | F19: 0 | G19: 0
C20: 0 | D20: 0 | E20: 0 | F20: -2.081668171e-17 | G20: 1.110223025e-16
C21: 0 | D21: 0 | E21: 0 | F21: 0 | G21: 0
C22: 0 | D22: -2.081668171e-17 | E22: 0 | F22: 0 | G22: 0
C23: 0 | D23: 1.110223025e-16 | E23: 0 | F23: 0 | G23: 0

Sheet ValVecPropres
A1: FONCTIONS VALP et VECP
A2: VALEURS PROPRES ET VECTEURS PROPRES
B3: Matrice Entrée
C4: 1 | D4: 2 | E4: 3 | F4: 4 | G4: 5
B5: 1 | C5: 1.83724e-05 | D5: 1.658168e-05 | E5: 5.3366e-06 | F5: 0.00108334 | G5: 5.8227e-05
B6: 2 | C6: 1.658168e-05 | D6: 3.7588721e-05 | E6: 4.77222e-06 | F6: 0.000143303 | G6: 0.000119912
B7: 3 | C7: 5.3366e-06 | D7: 4.77222e-06 | E7: 4.9304e-06 | F7: 0.00060356 | G7: 3.487e-05
B8: 4 | C8: 0.00108334 | D8: 0.000143303 | E8: 0.00060356 | F8: 0.195049 | G8: 0.0037152
B9: 5 | C9: 5.8227e-05 | D9: 0.000119912 | E9: 3.487e-05 | F9: 0.0037152 | G9: 0.000678748
B11: Valeurs Propres
C12: =MvalP(C5:G9) -> 0.1951279913 | D12: 0.0006343467137 | E12: 2.057147996e-05 | F12: 3.75361428e-06 | G12: 1.976449658e-06 | H12: =form(C12) -> =MvalP(C5:G9)
B14: Vecteurs Propres
C15: =Mvecp(C5:G9) -> 0.0055571908 | D15: 0.06404211341 | E15: 0.60358411 | F15: 0.7508687736 | G15: -0.2602883637 | H15: =form(C15) -> =Mvecp(C5:G9)
C16: 0.0007466884741 | D16: 0.1939631901 | E16: 0.773578108 | F16: -0.5737034111 | G16: 0.1865985806
C17: 0.003096183849 | D17: 0.03768235571 | E17: 0.001976086043 | F17: 0.3229828833 | G17: 0.9456471889
C18: 0.9997969644 | D18: -0.0193060779 | E18: -0.0002502410842 | F18: -0.005740013267 | G18: -0.0005431583693
C19: 0.01910507184 | D19: 0.9780001043 | E19: -0.1930263336 | F19: 0.05205372407 | G19: -0.05640954312
C21: =MMULT(C5:G9,C15:G19) -> 0.001084363478 | D21: 4.062490418e-05 | E21: 1.241661842e-05 | F21: 2.818471751e-06 | G21: -5.144468474e-07 | H21: =form(C21) -> =PRODUITMAT(C5:G9;C15:G19)
C22: 0.0001456998221 | D22: 0.0001230399122 | E22: 1.591364655e-05 | F22: -2.153461317e-06 | G22: 3.688027008e-07
C23: 0.000604152135 | D23: 2.390367851e-05 | E23: 4.065101445e-08 | F23: 1.212353163e-06 | G23: 1.869024063e-06
C24: 0.1950883733 | D24: -1.224674707e-05 | E24: -5.14782945e-09 | F24: -2.154579577e-08 | G24: -1.073525173e-09
C25: 0.003727934291 | D25: 0.0006203911521 | E25: -3.970837353e-06 | F25: 1.95389602e-07 | G25: -1.114906222e-07
C27: =C21/C15 -> 0.1951279913 | D27: =D21/D15 -> 0.0006343467137 | E27: 2.057147996e-05 | F27: 3.75361428e-06 | G27: 1.976449658e-06 | H27: =form(C27) -> =C21/C15
C28: =C22/C16 -> 0.1951279913 | D28: 0.0006343467137 | E28: 2.057147996e-05 | F28: 3.75361428e-06 | G28: 1.976449658e-06
C29: 0.1951279913 | D29: 0.0006343467137 | E29: 2.057147996e-05 | F29: 3.75361428e-06 | G29: 1.976449658e-06
C30: 0.1951279913 | D30: 0.0006343467137 | E30: 2.057147996e-05 | F30: 3.75361428e-06 | G30: 1.976449658e-06
C31: 0.1951279913 | D31: 0.0006343467137 | E31: 2.057147996e-05 | F31: 3.753614281e-06 | G31: 1.976449658e-06
C33: =C27-C12 -> 0 | D33: =D27-D12 -> 0 | E33: 0 | F33: 0 | G33: 0 | H33: =SUM(C33:G33) -> 0

Sheet ExoCorrec2 (hidden)
A1: MATRICES Exercices
A4: CALCUL DU PRODUIT MATRICIEL D'UNE MATRICE PAR SA TRANSPOSEE | G4: On obtient une matrice symétrique
B7: 11 | C7: 3 | D7: 5 | E7: 8 | J7: =MMULT(B7:E10,TRANSPOSE(B7:E10)) -> 219 | K7: 69 | L7: -176 | M7: 255
B8: 1 | C8: 12 | D8: 14 | E8: -6 | J8: 69 | K8: 377 | L8: 60 | M8: 67
B9: -22 | C9: 3 | D9: 5 | E9: 4 | J9: -176 | K9: 60 | L9: 534 | M9: -156
B10: 11 | C10: 6 | D10: 4 | E10: 12 | J10: 255 | K10: 67 | L10: -156 | M10: 317
A12: MATRICE DE CHOLESKY DE LA MATRICE SUIVANTE
B15: =J7:M10 -> 219 | C15: 69 | D15: -176 | E15: 255 | J15: =cholesky(B15:E18) -> 
B16: 69 | C16: 377 | D16: 60 | E16: 67
B17: -176 | C17: 60 | D17: 534 | E17: -156
B18: 255 | C18: 67 | D18: -156 | E18: 317
A20: VERIFICATION PAR LE CALCUL DU CARRE DE LA MATRICE DE CHOLESKY: A . TA
B22: =J15:M18 ->  | J22: =MMULT(B22:E25,TRANSPOSE(B22:E25)) -> 
A27: DETERMINANT DE LA MATRICE INITIALE
B29: =+J7:M10 -> 219 | C29: 69 | D29: -176 | E29: 255 | J29: =MDETERM(B29:E32) -> 320123664
B30: 69 | C30: 377 | D30: 60 | E30: 67
B31: -176 | C31: 60 | D31: 534 | E31: -156
B32: 255 | C32: 67 | D32: -156 | E32: 317
A34: DETERMINANT DE LA MATRICE DE CHOLESKY ET SON CARRE
B36: =+J15:M18 ->  | J36: =MDETERM(B36:E39) -> 
H38: CARRE | J38: =J36*J36 -> 
A41: VECTEURS PROPRES et VALEURS PROPRES D'UNE MATRICE
J42: Valeurs Propres
B43: =B15:E18 -> 219 | C43: 69 | D43: -176 | E43: 255 | J43: =Valp(B43:E46) -> 
B44: 69 | C44: 377 | D44: 60 | E44: 67
B45: -176 | C45: 60 | D45: 534 | E45: -156 | J45: Vecteurs Propres, matrice de passage P
B46: 255 | C46: 67 | D46: -156 | E46: 317 | J46: =Vecp(B43:E46) -> 
A51: VERIFICATION
B53: PRODUIT DES VALEURS PROPRES | J53: =PRODUCT(J43:M43) -> 
B55: DETERMINANT DE LA MATRICE DE PASSAGE | J55: =MDETERM(J46:M49) -> 
B57: NORME DES VECTEURS PROPRES | J57: =SUMSQ(J46:J49) ->  | K57: =SUMSQ(K46:K49) ->  | L57: =SUMSQ(L46:L49) ->  | M57: =SUMSQ(M46:M49) -> 
B58: Utilisez la fonction SOMME.CARRES
B60: Produit de la matrice par le premier vecteur propre | J60: =MMULT(B43:E46,J46:J49) -> 
B65: Division de ce produit par le vecteur propre lui même | J65: =J60:J63/J46:J49 -> 
A70: COMPLEMENT: SECONDE MANIERE D'OBTENIR UNE MATRICE RACINE CARRE
B72: Obtenir la matrice diagonale des valeurs propres | J72: Matrice Diagonale: D
J73: =J43 ->  | K73: 0 | L73: 0 | M73: 0
J74: 0 | K74: =K43 ->  | L74: 0 | M74: 0
J75: 0 | K75: 0 | L75: =L43 ->  | M75: 0
J76: 0 | K76: 0 | L76: 0 | M76: =M43 -> 
B78: Prendre les racines carrés des éléments diagonaux | J78: =SQRT(J73) ->  | K78: 0 | L78: 0 | M78: 0
J79: 0 | K79: =SQRT(K74) ->  | L79: 0 | M79: 0
J80: 0 | K80: 0 | L80: =SQRT(L75) ->  | M80: 0
J81: 0 | K81: 0 | L81: 0 | M81: =SQRT(M76) -> 
B83: Calculer P D P-1 , on obtient une matrice racine carrée | J83: =MMULT((J46:M49),MMULT(J78:M81,MINVERSE(J46:M49))) -> 
B88: Vérification | J88: =MMULT(J83:M86,TRANSPOSE(J83:M86)) -> 

Sheet NBHALTON
A1: FONCTION HALTON
A2: NOMBRES DE HALTON
B4: p | C4: k | D4: Halton | E4: Fraction | G4: p | H4: k | I4: Halton | J4: Fraction
B5: 3 | C5: 1 | D5: =halton(B5,C5) -> 0.3333333333 | E5: =D5 -> 0.3333333333 | G5: 5 | H5: 1 | I5: =halton(G5,H5) -> 0.2 | J5: =I5 -> 0.2
B6: 3 | C6: =C5+1 -> 2 | D6: =halton(B6,C6) -> 0.6666666667 | E6: =D6 -> 0.6666666667 | G6: 5 | H6: =H5+1 -> 2 | I6: =halton(G6,H6) -> 0.4 | J6: =I6 -> 0.4
B7: 3 | C7: =C6+1 -> 3 | D7: 0.1111111111 | E7: 0.1111111111 | G7: 5 | H7: =H6+1 -> 3 | I7: 0.6 | J7: 0.6
B8: 3 | C8: =C7+1 -> 4 | D8: 0.4444444444 | E8: 0.4444444444 | G8: 5 | H8: =H7+1 -> 4 | I8: 0.8 | J8: 0.8
B9: 3 | C9: 5 | D9: 0.7777777778 | E9: 0.7777777778 | G9: 5 | H9: 5 | I9: 0.04 | J9: 0.04
B10: 3 | C10: 6 | D10: 0.2222222222 | E10: 0.2222222222 | G10: 5 | H10: 6 | I10: 0.24 | J10: 0.24
B11: 3 | C11: 7 | D11: 0.5555555556 | E11: 0.5555555556 | G11: 5 | H11: 7 | I11: 0.44 | J11: 0.44
B12: 3 | C12: 8 | D12: 0.8888888889 | E12: 0.8888888889 | G12: 5 | H12: 8 | I12: 0.64 | J12: 0.64
B13: 3 | C13: 9 | D13: 0.03703703704 | E13: 0.03703703704 | G13: 5 | H13: 9 | I13: 0.84 | J13: 0.84
B14: 3 | C14: 10 | D14: 0.3703703704 | E14: 0.3703703704 | G14: 5 | H14: 10 | I14: 0.08 | J14: 0.08
B15: 3 | C15: 11 | D15: 0.7037037037 | E15: 0.7037037037 | G15: 5 | H15: 11 | I15: 0.28 | J15: 0.28
B16: 3 | C16: 12 | D16: 0.1481481481 | E16: 0.1481481481 | G16: 5 | H16: 12 | I16: 0.48 | J16: 0.48
B17: 3 | C17: 13 | D17: 0.4814814815 | E17: 0.4814814815 | G17: 5 | H17: 13 | I17: 0.68 | J17: 0.68

Sheet TPASCAL
A1: FONCTIONS TPASCAL
A2: COEFFICIENTS DU BINOME OU TRIANGLE DE PASCAL
A3: 0 | B3: 1 | C3: 0 | D3: 0 | E3: 0 | F3: 0 | G3: 0 | H3: 0 | I3: 0 | J3: 0 | K3: 0 | L3: 0
A4: 0 | B4: =B3+A3 -> 1 | C4: =C3+B3 -> 1 | D4: =D3+C3 -> 0 | E4: =E3+D3 -> 0 | F4: =F3+E3 -> 0 | G4: 0 | H4: 0 | I4: 0 | J4: 0 | K4: 0 | L4: =L3+K3 -> 0
A5: 0 | B5: =B4+A4 -> 1 | C5: =C4+B4 -> 2 | D5: =D4+C4 -> 1 | E5: 0 | F5: 0 | G5: 0 | H5: 0 | I5: 0 | J5: 0 | K5: 0 | L5: 0
A6: 0 | B6: =B5+A5 -> 1 | C6: 3 | D6: =D5+C5 -> 3 | E6: =E5+D5 -> 1 | F6: 0 | G6: 0 | H6: 0 | I6: 0 | J6: 0 | K6: 0 | L6: 0
A7: 0 | B7: 1 | C7: 4 | D7: =D6+C6 -> 6 | E7: 4 | F7: =F6+E6 -> 1 | G7: 0 | H7: 0 | I7: 0 | J7: 0 | K7: 0 | L7: 0
A8: 0 | B8: 1 | C8: 5 | D8: =D7+C7 -> 10 | E8: 10 | F8: 5 | G8: 1 | H8: 0 | I8: 0 | J8: 0 | K8: 0 | L8: 0
A9: 0 | B9: 1 | C9: 6 | D9: 15 | E9: 20 | F9: 15 | G9: 6 | H9: 1 | I9: 0 | J9: 0 | K9: 0 | L9: 0
A10: 0 | B10: 1 | C10: 7 | D10: 21 | E10: 35 | F10: 35 | G10: 21 | H10: 7 | I10: =I9+H9 -> 1 | J10: 0 | K10: 0 | L10: 0
A11: 0 | B11: 1 | C11: 8 | D11: 28 | E11: 56 | F11: 70 | G11: 56 | H11: 28 | I11: 8 | J11: 1 | K11: 0 | L11: 0
A12: 0 | B12: 1 | C12: 9 | D12: 36 | E12: 84 | F12: 126 | G12: 126 | H12: 84 | I12: 36 | J12: 9 | K12: 1 | L12: 0
A13: 0 | B13: 1 | C13: 10 | D13: 45 | E13: 120 | F13: 210 | G13: =G12+F12 -> 252 | H13: 210 | I13: 120 | J13: 45 | K13: 10 | L13: 1 | M13: =form(H13) -> =H12+G12
B15: 0 | C15: 1 | D15: 2 | E15: 3 | F15: 4 | G15: 5 | H15: 6 | I15: 7 | J15: 8 | K15: 9 | L15: 10
A16: 0 | B16: =pascal($A16,B$15) -> 1 | C16: =pascal($A16,C$15) -> 0 | D16: 0 | E16: 0 | F16: 0 | G16: 0 | H16: 0 | I16: 0 | J16: 0 | K16: 0 | L16: 0
A17: 1 | B17: =pascal($A17,B$15) -> 1 | C17: 1 | D17: 0 | E17: 0 | F17: 0 | G17: 0 | H17: 0 | I17: 0 | J17: 0 | K17: 0 | L17: 0
A18: 2 | B18: 1 | C18: 2 | D18: 1 | E18: 0 | F18: 0 | G18: 0 | H18: 0 | I18: 0 | J18: 0 | K18: 0 | L18: 0
A19: 3 | B19: 1 | C19: 3 | D19: 3 | E19: 1 | F19: 0 | G19: 0 | H19: 0 | I19: 0 | J19: 0 | K19: 0 | L19: 0
A20: 4 | B20: 1 | C20: 4 | D20: 6 | E20: 4 | F20: 1 | G20: 0 | H20: 0 | I20: 0 | J20: 0 | K20: 0 | L20: 0
A21: 5 | B21: 1 | C21: 5 | D21: 10 | E21: 10 | F21: 5 | G21: 1 | H21: 0 | I21: 0 | J21: 0 | K21: 0 | L21: 0
A22: 6 | B22: 1 | C22: 6 | D22: 15 | E22: 20 | F22: 15 | G22: 6 | H22: 1 | I22: 0 | J22: 0 | K22: 0 | L22: 0
A23: 7 | B23: 1 | C23: 7 | D23: 21 | E23: 35 | F23: 35 | G23: 21 | H23: 7 | I23: 1 | J23: 0 | K23: 0 | L23: 0
A24: 8 | B24: 1 | C24: 8 | D24: 28 | E24: 56 | F24: 70 | G24: 56 | H24: 28 | I24: 8 | J24: 1 | K24: 0 | L24: 0
A25: 9 | B25: 1 | C25: 9 | D25: 36 | E25: 84 | F25: 126 | G25: 126 | H25: 84 | I25: 36 | J25: 9 | K25: 1 | L25: 0
A26: 10 | B26: 1 | C26: 10 | D26: 45 | E26: 120 | F26: 210 | G26: 252 | H26: 210 | I26: 120 | J26: 45 | K26: 10 | L26: 1 | M26: =form(H26) -> =pascal($A26;H$15)
B28: 0 | C28: 1 | D28: 2 | E28: 3 | F28: 4 | G28: 5 | H28: 6 | I28: 7 | J28: 8 | K28: 9 | L28: 10
A29: 10 | B29: =pascal($A29,B28) -> 1 | C29: =pascal($A29,C28) -> 10 | D29: 45 | E29: 120 | F29: 210 | G29: 252 | H29: 210 | I29: 120 | J29: 45 | K29: 10 | L29: 1 | M29: =form(H29) -> =pascal($A29;H28)
B31: INVERSE
B32: =_xludf.Minverse(B16:L26) -> 1 | C32: 0 | D32: 0 | E32: 0 | F32: 0 | G32: 0 | H32: 0 | I32: 0 | J32: 0 | K32: 0 | L32: 0
B33: -1 | C33: 1 | D33: 4.050093594e-14 | E33: 5.542233339e-14 | F33: -5.96855898e-14 | G33: -1.705302566e-14 | H33: 1.421085472e-14 | I33: 2.842170943e-15 | J33: -1.421085472e-15 | K33: 3.552713679e-16 | L33: 0
B34: 1 | C34: -2 | D34: 1 | E34: 1.131184035e-13 | F34: -6.025402399e-14 | G34: 5.684341886e-14 | H34: -2.160049917e-14 | I34: -5.684341886e-15 | J34: 2.842170943e-15 | K34: -5.684341886e-16 | L34: 0
B35: -1 | C35: 3 | D35: -3 | E35: 1 | F35: 4.383160501e-13 | G35: -2.127187315e-13 | H35: 6.927791674e-14 | I35: -2.442490654e-15 | J35: -3.663735981e-15 | K35: 7.771561172e-16 | L35: 0
B36: 1 | C36: -4 | D36: 6 | E36: -4 | F36: 1 | G36: 6.051455633e-13 | H36: -1.930307765e-13 | I36: 2.664535259e-14 | J36: 4.440892099e-15 | K36: -1.369275064e-15 | L36: 0
B37: -1 | C37: 5 | D37: -10 | E37: 10 | F37: -5 | G37: 1 | H37: 4.115226678e-13 | I37: -5.49824736e-14 | J37: -9.198990775e-15 | K37: 2.960594732e-15 | L37: 0
B38: 1 | C38: -6 | D38: 15 | E38: -20 | F38: 15 | G38: -6 | H38: 1 | I38: 6.344131569e-14 | J38: 2.347328681e-14 | K38: -6.026924991e-15 | L38: 0
B39: -1 | C39: 7 | D39: -21 | E39: 35 | F39: -35 | G39: 21 | H39: -7 | I39: 1 | J39: -6.372680161e-14 | K39: 1.088018564e-14 | L39: 0
B40: 1 | C40: -8 | D40: 28 | E40: -56 | F40: 70 | G40: -56 | H40: 28 | I40: -8 | J40: 1 | K40: -1.953992523e-14 | L40: 0
B41: -1 | C41: 9 | D41: -36 | E41: 84 | F41: -126 | G41: 126 | H41: -84 | I41: 36 | J41: -9 | K41: 1 | L41: 0
B42: 1 | C42: -10 | D42: 45 | E42: -120 | F42: 210 | G42: -252 | H42: 210 | I42: -120 | J42: 45 | K42: -10 | L42: 1

Sheet TCATALAN
A1: FONCTIONS TCATALAN
A2: NOMBRES DE CATALAN
A3: 0 | B3: 1 | C3: 0 | D3: 0 | E3: 0 | F3: 0 | G3: 0 | H3: 0 | I3: 0 | J3: 0 | K3: 0 | L3: 0
A4: 0 | B4: =B3+A4 -> 1 | C4: =C3+B4 -> 1 | D4: 0 | E4: 0 | F4: 0 | G4: 0 | H4: 0 | I4: 0 | J4: 0 | K4: 0 | L4: 0
A5: 0 | B5: =B4+A5 -> 1 | C5: 2 | D5: =D4+C5 -> 2 | E5: 0 | F5: 0 | G5: 0 | H5: 0 | I5: 0 | J5: 0 | K5: 0 | L5: 0
A6: 0 | B6: 1 | C6: 3 | D6: 5 | E6: 5 | F6: 0 | G6: 0 | H6: 0 | I6: 0 | J6: 0 | K6: 0 | L6: 0
A7: 0 | B7: 1 | C7: 4 | D7: 9 | E7: 14 | F7: 14 | G7: 0 | H7: 0 | I7: 0 | J7: 0 | K7: 0 | L7: 0
A8: 0 | B8: 1 | C8: 5 | D8: 14 | E8: 28 | F8: 42 | G8: 42 | H8: 0 | I8: 0 | J8: 0 | K8: 0 | L8: 0
A9: 0 | B9: 1 | C9: 6 | D9: 20 | E9: 48 | F9: 90 | G9: 132 | H9: 132 | I9: 0 | J9: 0 | K9: 0 | L9: 0
A10: 0 | B10: 1 | C10: 7 | D10: 27 | E10: 75 | F10: 165 | G10: 297 | H10: 429 | I10: 429 | J10: 0 | K10: 0 | L10: 0
A11: 0 | B11: 1 | C11: 8 | D11: 35 | E11: 110 | F11: 275 | G11: 572 | H11: 1001 | I11: 1430 | J11: 1430 | K11: 0 | L11: 0
A12: 0 | B12: 1 | C12: 9 | D12: 44 | E12: 154 | F12: 429 | G12: 1001 | H12: 2002 | I12: 3432 | J12: 4862 | K12: 4862 | L12: 0
A13: 0 | B13: 1 | C13: 10 | D13: 54 | E13: 208 | F13: 637 | G13: 1638 | H13: 3640 | I13: 7072 | J13: 11934 | K13: 16796 | L13: 16796 | M13: =form(H13) -> =H12+G13
B15: 0 | C15: 1 | D15: 2 | E15: 3 | F15: 4 | G15: 5 | H15: 6 | I15: 7 | J15: 8 | K15: 9 | L15: 10
A16: 0 | B16: =tcatalan($A16,B$15) -> 1 | C16: 0 | D16: 0 | E16: 0 | F16: 0 | G16: 0 | H16: 0 | I16: 0 | J16: 0 | K16: 0 | L16: 0
A17: 1 | B17: =tcatalan($A17,B$15) -> 1 | C17: =tcatalan($A17,C$15) -> 1 | D17: =tcatalan($A17,D$15) -> 0 | E17: =tcatalan($A17,E$15) -> 0 | F17: =tcatalan($A17,F$15) -> 0 | G17: 0 | H17: =tcatalan($A17,H$15) -> 0 | I17: =tcatalan($A17,I$15) -> 0 | J17: 0 | K17: 0 | L17: 0
A18: 2 | B18: =tcatalan($A18,B$15) -> 1 | C18: 2 | D18: 2 | E18: 0 | F18: 0 | G18: 0 | H18: 0 | I18: 0 | J18: 0 | K18: 0 | L18: 0
A19: 3 | B19: 1 | C19: 3 | D19: 5 | E19: 5 | F19: 0 | G19: 0 | H19: 0 | I19: 0 | J19: 0 | K19: 0 | L19: 0
A20: 4 | B20: 1 | C20: 4 | D20: 9 | E20: 14 | F20: 14 | G20: 0 | H20: 0 | I20: 0 | J20: 0 | K20: 0 | L20: 0
A21: 5 | B21: 1 | C21: 5 | D21: =tcatalan($A21,D$15) -> 14 | E21: =tcatalan($A21,E$15) -> 28 | F21: 42 | G21: 42 | H21: 0 | I21: 0 | J21: 0 | K21: 0 | L21: 0
A22: 6 | B22: 1 | C22: 6 | D22: 20 | E22: 48 | F22: =tcatalan($A22,F$15) -> 90 | G22: =tcatalan($A22,G$15) -> 132 | H22: 132 | I22: 0 | J22: 0 | K22: 0 | L22: =tcatalan($A22,L$15) -> 0
A23: 7 | B23: 1 | C23: 7 | D23: 27 | E23: 75 | F23: 165 | G23: 297 | H23: 429 | I23: 429 | J23: 0 | K23: 0 | L23: 0
A24: 8 | B24: 1 | C24: 8 | D24: 35 | E24: 110 | F24: 275 | G24: =tcatalan($A24,G$15) -> 572 | H24: 1001 | I24: 1430 | J24: 1430 | K24: 0 | L24: 0
A25: 9 | B25: 1 | C25: 9 | D25: 44 | E25: 154 | F25: 429 | G25: 1001 | H25: 2002 | I25: 3432 | J25: 4862 | K25: 4862 | L25: 0
A26: 10 | B26: 1 | C26: 10 | D26: 54 | E26: 208 | F26: 637 | G26: 1638 | H26: 3640 | I26: 7072 | J26: 11934 | K26: 16796 | L26: 16796 | M26: =form(H26) -> =tcatalan($A26;H$15)
B28: 0 | C28: 1 | D28: 2 | E28: 3 | F28: 4 | G28: 5 | H28: 6 | I28: 7 | J28: 8 | K28: 9 | L28: 10
B29: =catalan(B28) -> 1 | C29: =catalan(C28) -> 1 | D29: =catalan(D28) -> 2 | E29: 5 | F29: 14 | G29: 42 | H29: 132 | I29: 429 | J29: 1430 | K29: 4862 | L29: 16796 | M29: =form(H29) -> =catalan(H28)
B31: INVERSE
B32: =_xludf.Minverse(B16:L26) -> 1 | C32: 0 | D32: 0 | E32: 0 | F32: 0 | G32: 0 | H32: 0 | I32: 0 | J32: 0 | K32: 0 | L32: 0
B33: -1 | C33: 1 | D33: -1.065814104e-15 | E33: 9.964251646e-16 | F33: 8.715250743e-16 | G33: -1.143529715e-15 | H33: 4.385380947e-16 | I33: 1.526556659e-16 | J33: -1.776356839e-16 | K33: 0 | L33: 3.330669074e-17
B34: 0.5 | C34: -1 | D34: 0.5 | E34: -1.256473558e-15 | F34: -2.113693835e-16 | G34: 9.266092167e-16 | H34: -9.244741724e-16 | I34: 5.871371765e-17 | J34: 1.366428338e-16 | K34: 0 | L34: -3.843079701e-17
B35: -0.1 | C35: 0.4 | D35: -0.5 | E35: 0.2 | F35: 1.757076627e-15 | G35: -1.290584703e-15 | H35: 8.956129489e-16 | I35: -1.304759872e-16 | J35: -6.70098897e-17 | K35: 0 | L35: 3.479359658e-17
B36: -0.007142857143 | C36: -0.04285714286 | D36: 0.1785714286 | E36: -0.2 | F36: 0.07142857143 | G36: 1.144917494e-15 | H36: -5.204170428e-16 | I36: 7.632783294e-17 | J36: 2.220446049e-17 | K36: 0 | L36: -1.942890293e-17
B37: 0.002380952381 | C37: -0.009523809524 | D37: -0.0119047619 | E37: 0.06666666667 | F37: -0.07142857143 | G37: 0.02380952381 | H37: 1.833686354e-16 | I37: -2.553880715e-19 | J37: -4.086209145e-18 | K37: 0 | L37: 5.107761431e-18
B38: 0.000974025974 | C38: -0.0006493506494 | D38: -0.003787878788 | E38: -0.00303030303 | F38: 0.02272727273 | G38: -0.02380952381 | H38: 0.007575757576 | I38: -3.258226854e-18 | J38: -2.543006325e-18 | K38: 0 | L38: 0
B39: 0.0001248751249 | C39: 0.0004162504163 | D39: -0.0007076257076 | E39: -0.001165501166 | F39: -0.0007492507493 | G39: 0.007326007326 | H39: -0.007575757576 | I39: 0.002331002331 | J39: 2.342618027e-18 | K39: 0 | L39: -3.346597182e-19
B40: -3.57975358e-05 | C40: 0.0002014652015 | D40: 4.162504163e-06 | E40: -0.000303030303 | F40: -0.0003246753247 | G40: -0.0001831501832 | H40: 0.002272727273 | I40: -0.002331002331 | J40: 0.0006993006993 | K40: 0 | L40: 1.133431381e-19
B41: -2.541576071e-05 | C41: 4.338798456e-05 | D41: 6.194785607e-05 | E41: -3.976415741e-05 | F41: -0.000101369219 | G41: -8.618832148e-05 | H41: -4.456327986e-05 | I41: 0.0006855889209 | J41: -0.0006993006993 | K41: 0.0002056766763 | L41: -2.809268787e-20
B42: -7.411319331e-06 | C42: -7.809527933e-07 | D42: 2.691451995e-05 | E42: 9.3456595e-06 | F42: -2.091561689e-05 | G42: -3.033602105e-05 | H42: -2.228163993e-05 | I42: -1.082508822e-05 | J42: 0.0002024291498 | K42: -0.0002056766763 | L42: 5.953798523e-05
